Cogmind - Beta 11 @@@ ROGUE MODE // 2022.04.08 @ 13:25:54 Player: Red Box Result: Destroyed by as-53445 with Assembled Blade Performance ------------- Evolutions (0) 0 Regions Visited (2) 400 Robots Destroyed (19) 95 Value Destroyed (365) 365 Prototype IDs (3) 60 Alien Tech Used (0) 0 Bonus (0) 0 TOTAL SCORE: 920 Bonus ------- None Cogmind --------- Core Integrity 0/250 Matter 300/300 Energy 89/100 System Corruption 10% Temperature Warm (171) Movement Rolling (95) Ox1 Location -10/Mines Parts ------- > --- POWER (1) -------- (None) > --- PROPULSION (2) --- Wheel Wheel > --- UTILITY (2) ------ Heat Sink Large Storage Unit > --- WEAPON (2) ------- Particle Cannon Particle Cannon > --- INVENTORY (15) --- Ion Engine Wheel Wheel Compact Wheel Compact Wheel Compact Wheel Large Storage Unit Improved Terrain Scanner Targeting Computer EM Pulse Gun Particle Cannon Particle Cannon Grenade Launcher Mining Laser Peak State ------------ > --- POWER ------------ Light Ion Engine > --- PROPULSION ------- Wheel Wheel > --- UTILITY ---------- Large Storage Unit Improved Terrain Scanner > --- WEAPON ----------- Particle Gun Particle Cannon > --- INVENTORY -------- Ion Engine Wheel Wheel Compact Wheel Compact Wheel Compact Wheel Large Storage Unit Targeting Computer EM Pulse Gun Particle Cannon Particle Cannon Particle Cannon Grenade Launcher Mining Laser [Rating: 12] Favorites ----------- Power Light Ion Engine Engine Light Ion Engine Propulsion Wheel Leg Aluminum Leg Wheel Wheel Utility Large Storage Unit Device Improved Terrain Scanner Storage Large Storage Unit Weapon Small Laser Energy Gun Small Laser Energy Cannon Particle Cannon Special Weapon Mining Laser Build | -11 -10 -10 ------- Run | Scr Mat Min Slots Evolved . | . . . Power . | . . . Propulsion . | . . . Utility . | . . . Weapon . | . . . Parts Attached 23 | 7 12 4 Power 2 | 1 1 . Engine 2 | 1 1 . Core . | . . . Reactor . | . . . Propulsion 6 | 2 4 . Treads . | . . . Leg 3 | 2 1 . Wheel 3 | . 3 . Hover . | . . . Flight . | . . . Utility 7 | 2 3 2 Device 5 | 1 2 2 Storage 2 | 1 1 . Processor . | . . . Hackware . | . . . Protection . | . . . Artifact . | . . . Weapon 8 | 2 4 2 Energy Gun 5 | 2 3 . Energy Cannon 2 | . . 2 Ballistic Gun . | . . . Ballistic Cannon . | . . . Launcher . | . . . Special Weapon 1 | . 1 . Impact Weapon . | . . . Slashing Weapon . | . . . Piercing Weapon . | . . . Special Melee Weapon . | . . . Unidentified Prototypes . | . . . Parts Lost 7 | . 4 3 Power 2 | . 1 1 Propulsion 2 | . 2 . Utility 1 | . 1 . Weapon 2 | . . 2 Highest Loss Streak 2 | . 2 2 To Critical Strikes 2 | . 1 1 Average Slot Usage (%) 97 | . 97 98 Engine 13 | . 13 14 Leg 8 | . 11 . Wheel 18 | . 15 28 Device 13 | . 13 12 Storage 14 | . 14 14 Energy Gun 23 | . 26 13 Energy Cannon 3 | . . 14 Special Weapon 1 | . 1 . Naked Turns . | . . . Heaviest Build 32 | 13 29 32 Greatest Support 20 | 20 20 20 Greatest Overweight (x) 3 | 3 2 1 Average Overweight (x) . | . . 1 Largest Inventory Capacity 15 | 8 15 15 Average Capacity 11 | 7 11 15 Most Carried 15 | 8 15 15 Average Carried 10 | 5 10 14 Final Capacity 15 | 8 15 15 Final Carried 15 | 8 15 14 Class Distribution -------------------- 100% | Mutant Dominant Class ---------------- Mutant | -10/Materials Mutant | -10/Mines Resources | -11 -10 -10 ----------- Run | Scr Mat Min Matter Collected 515 | 270 75 170 Remotely . | . . . Salvage Created 729 | 120 455 154 Parts 37 | 6 20 11 Haulers Intercepted . | . . . Recyclers Shooed 1 | 1 . . Parts Field Recycled . | . . . Retrieved Matter . | . . . Parts Self-Destructed . | . . . Prevented . | . . . Kills | -11 -10 -10 ------- Run | Scr Mat Min Combat Hostiles Destroyed 15 | . 7 8 Guns 9 | . 7 2 Cannons 6 | . . 6 Classes Destroyed 7 | 2 4 1 Builder 1 | . 1 . Tunneler 1 | 1 . . Recycler 3 | 1 2 . Watcher 2 | . 2 . Swarmer 6 | . 3 3 Grunt 6 | . 4 2 Assembled 3 | . . 3 Best Kill Streak 4 | 2 4 3 Combat Bots Only 4 | . 4 3 Max Kills in Single Turn 1 | 1 1 1 Gunslinging . | . . . Exploded . | . . . Melee . | . . . Uniques/NPCs Destroyed . | . . . Combat | -11 -10 -10 -------- Run | Scr Mat Min Damage Taken 1110 | . 527 583 Core 256 | . 79 177 Absorbed by Shields . | . . . Core Remaining (%) 100 | 100 . . Volleys Fired 71 | 6 43 22 Largest 2 | 2 2 2 Hottest 136 | 80 100 136 Shots Fired 135 | 12 82 41 Gun 111 | 12 77 22 Cannon 19 | . . 19 Launcher . | . . . Special 5 | . 5 . Kinetic . | . . . Thermal 135 | 12 82 41 Explosive . | . . . Electromagnetic . | . . . Robot Hit Streak 10 | 7 10 8 Robot Miss Streak 6 | 2 3 6 Penetration Max . | . . . Secondary Targets . | . . . Shots Hit Robots 74 | 8 44 22 Core Hits 35 | 3 21 11 Critical Kills . | . . . Critical Parts Destroyed . | . . . Critical Strikes . | . . . Melee Attacks . | . . . Impact . | . . . Slashing . | . . . Piercing . | . . . Sneak Attacks . | . . . Combat Hostiles . | . . . Follow-up Attacks . | . . . Damage Inflicted 1026 | 91 530 405 Guns 836 | 91 530 215 Cannons 190 | . . 190 Explosions . | . . . Melee . | . . . Ramming . | . . . Kinetic . | . . . Thermal 1026 | 91 530 405 Explosive . | . . . Electromagnetic . | . . . Impact . | . . . Slashing . | . . . Piercing . | . . . Highest Corruption 10 | . 10 10 Average Corruption 10 | . 10 10 Corruption Purged . | . . . Corruption Blocked . | . . . Effects 16 | . 5 11 Message Errors 3 | . . 3 Matter Fused 8 | . 4 4 Energy Discharges 1 | . . 1 Parts Rejected 1 | . . 1 Data Loss (minor) 2 | . . 2 Misfires 1 | . 1 . Overload Shots . | . . . Overflow Damage 5 | . . 5 Projectiles 5 | . . 5 Explosions . | . . . Melee . | . . . Knockbacks . | . . . Impact . | . . . Kinetic . | . . . Secondary . | . . . Self-Inflicted Damage . | . . . Shots . | . . . Rammed . | . . . Targets Rammed . | . . . Kicked . | . . . Crushed . | . . . Highest Temperature 517 | 90 231 517 Average Temperature 119 | 42 76 201 Received Heat Transfer 294 | . 150 144 Effects 6 | . 2 4 Shutdowns 2 | . . 2 Interference 2 | . 2 . Matter Decay 1 | . . 1 Damage (core) 1 | . . 1 Siege Activations . | . . . Robots Corrupted . | . . . Combat Hostiles . | . . . Parts Fried . | . . . Impact Corruptions . | . . . Robots Melted . | . . . Combat Hostiles . | . . . Parts Melted 4 | . 3 1 Heat Transferred 2213 | 200 1162 851 Parts Sabotaged . | . . . Parts Stolen . | . . . Parts Stripped . | . . . Power Chain Reactions . | . . . Missiles Intercepted . | . . . Alert | -11 -10 -10 ------- Run | Scr Mat Min Peak Influence 257 | 10 257 120 Initial 6 | . 6 . Average 85 | 5 103 58 Maximum Alert Level 1 | . 1 . Low Security (%) 88 | 100 82 100 Level 1 11 | . 17 . Level 2 . | . . . Level 3 . | . . . Level 4 . | . . . Level 5 . | . . . High Security . | . . . Max Security . | . . . Squads Dispatched . | . . . Investigation . | . . . Extermination . | . . . Reinforcement . | . . . Assault . | . . . Garrison . | . . . Intercept . | . . . Searches Triggered . | . . . Construction Impeded . | . . . Haulers Reinforced . | . . . Active Scanning Responses . | . . . Cargo Convoy Interrupts . | . . . Stealth | -11 -10 -10 --------- Run | Scr Mat Min Distress Signals . | . . . Communications Jammed . | . . . Distress Signals . | . . . Times Spotted 23 | . 12 11 Peak Tracking Total 4 | . 4 4 Tactical Retreats 3 | . 2 1 Traps | -11 -10 -10 ------- Run | Scr Mat Min Traps Triggered . | . . . Indirectly . | . . . Trap Hack Attempts . | . . . Triggered . | . . . Disarmed 6 | . 6 . Reprogrammed . | . . . Reused . | . . . Traps Extracted . | . . . Installed . | . . . Triggered . | . . . Machines | -11 -10 -10 ---------- Run | Scr Mat Min Machines Disabled . | . . . Max in Single Turn . | . . . Machines Sabotaged . | . . . Garrisons Compromised . | . . . Overloaded Fab Kills . | . . . Hacking | -11 -10 -10 --------- Run | Scr Mat Min Machines Accessed 9 | . 9 . Terminals 8 | . 8 . Fabricators . | . . . Repair Stations . | . . . Recycling Units 1 | . 1 . Scanalyzers . | . . . Garrison Access . | . . . Total Hacks 36 | . 36 . Successful 22 | . 22 . Failed 14 | . 14 . Catastrophic . | . . . Database Lockouts . | . . . Manual 23 | . 23 . Terminals 34 | . 34 . Fabricators . | . . . Repair Stations . | . . . Recycling Units 2 | . 2 . Scanalyzers . | . . . Garrison Access . | . . . Terminal Hacks 11 | . 11 . Robot Analysis 3 | . 3 . Prototype ID Bank 2 | . 2 . Terminal Index 1 | . 1 . Unreport Threat 1 | . 1 . Locate Traps 2 | . 2 . Disarm Traps 1 | . 1 . Hauler Manifests 1 | . 1 . Fabricator Hacks . | . . . Repair Station Hacks . | . . . Recycling Unit Hacks 1 | . 1 . Retrieve Components 1 | . 1 . Scanalyzer . | . . . Garrison Access Hacks . | . . . Unauthorized Hacks 10 | . 10 . Terminals 9 | . 9 . Track 3 | . 3 . Assimilate 2 | . 2 . Botnet 3 | . 3 . Operators 1 | . 1 . Fabricators . | . . . Repair Stations . | . . . Recycling Units 1 | . 1 . Reject 1 | . 1 . Scanalyzers . | . . . Garrison Access . | . . . Data Cores Recovered . | . . . Used . | . . . Hacking Detections 7 | . 7 . Full Trace Events . | . . . Feedback Events . | . . . Feedback Blocked . | . . . Robot Schematics Acquired . | . . . Robots Built . | . . . Authchips . | . . . Time . | . . . Total Robot Build Rating . | . . . Part Schematics Acquired . | . . . Parts Built . | . . . Authchips . | . . . Time . | . . . Total Part Build Rating . | . . . Parts Repaired . | . . . Time . | . . . Parts Recycled . | . . . Recycled Matter . | . . . Retrieved Matter . | . . . Retrieved Components 10 | . 10 . Parts Scanalyzed . | . . . Part Schematics Acquired . | . . . Parts Damaged . | . . . Bothacking | -11 -10 -10 ------------ Run | Scr Mat Min Used RIF Installer . | . . . Robots Hacked . | . . . Non-combat . | . . . Combat . | . . . Robot Hacks Applied . | . . . Relay Couplers Released . | . . . Fabnet Peak Effective % . | . . . Robots Rewired . | . . . Allies Hacked . | . . . Hacks Repelled . | . . . Allies | -11 -10 -10 -------- Run | Scr Mat Min Total Allies 1 | . 1 . Largest Group 1 | . 1 1 Highest-Rated Group 10 | . 10 10 Highest-Rated Ally 10 | . 10 10 Total Orders 4 | . . 4 STAY 2 | . . 2 FOLLOW 2 | . . 2 Ally Attacks . | . . . Total Damage . | . . . Kills . | . . . Allies Corrupted . | . . . Allies Melted . | . . . Intel | -11 -10 -10 ------- Run | Scr Mat Min Robot Analysis Total 3 | . 3 . Derelict Logs Recovered 1 | . . 1 Drone Launches . | . . . Drone Recoveries . | . . . Exploration | -11 -10 -10 ------------- Run | Scr Mat Min Turns Passed 1179 | 108 822 249 Spaces Moved 838 | 52 605 181 Core 10 | 10 . . Treads . | . . . Legs 246 | 42 204 . Wheels 582 | . 401 181 Hover . | . . . Flight . | . . . Fastest Speed 50 | 50 80 95 Average Speed 103 | 120 104 95 Slowest Speed 200 | 200 190 95 Overloaded Moves . | . . . Propulsion Burnouts . | . . . Robots Hopped . | . . . Cave-ins Triggered 1 | . 1 . Exploration Rate (%) 49 | 5 96 46 Regions Visited 2 Branch Regions 1 Pre-discovered Areas . | . . . Known Exits Taken . | . . . Unknown Exits Taken 2 | 1 1 . Scrap Searched 2 | . . 2 Spaces Dug 5 | . 5 . Terrain Destroyed 5 | . 5 . Melee . | . . . Projectile 5 | . 5 . AOE . | . . . Terrain Rammed . | . . . Walls Destroyed . | . . . Machines Disabled . | . . . Actions | -11 -10 -10 --------- Run | Scr Mat Min Total 1002 | 81 702 219 Wait 38 | 9 19 10 Move 836 | 51 604 181 Hop . | . . . Pick Up 26 | 8 16 2 Fast Attach 8 | 7 1 . Attach 6 | . 3 3 Detach . | . . . Swap 9 | . 8 1 Drop 8 | . 8 . Fire 71 | 6 43 22 Melee . | . . . Ram . | . . . Kick . | . . . Crush . | . . . Escape Stasis . | . . . Rewire . | . . . Trap . | . . . Miscellaneous . | . . . Route ------- -11/Scrapyard -10/Materials (discovered 5 exits: [*Mat x3] / [*Min x2]) -10/Mines History --------- Turn | Location | Event 19 | -11/Scrapyard | Discovered new exit (range 15) 109 | -11/Scrapyard | Entered Materials 193 | -10/Materials | Discovered new exit (range 6) 250 | -10/Materials | Discovered new exit (range 12) 300 | -10/Materials | Build established: Mutant 303 | -10/Materials | Discovered new exit (range 13) 496 | -10/Materials | Discovered new exit (range 15) 658 | -10/Materials | Discovered new exit (range 3) 859 | -10/Materials | Crushed by falling debris 859 | -10/Materials | System corruption reached 10% 931 | -10/Materials | Entered Mines 931 | -10/Mines | Accompanied by 1 ally 954 | -10/Mines | Core integrity fell below 50% 1127 | -10/Mines | Core integrity fell below 20% 1145 | -10/Mines | Assembled infested the area 1180 | -10/Mines | Destroyed by as-53445 with Assembled Blade Last Messages --------------- 01074_ Extracted 6 matter. 01096_ System corrupted: Matter fused (-10). 01114_ K-01 Serf collects debris. 01115_ System corrupted: Energy discharge (-26). 01123_ S-10 Pest destroyed. 01142_ System corrupted: Component data lost. 01142_ Acquired 10 matter. 01145_ ALERT: Infestation in the mines, dispatching Demolisher response squad. 01159_ Destroyed Asb. F-torch. 01161_ System corrupted: Matter fused (-6). 01161_ as-01333 suffers critical hit (Destroy). 01162_ as-01333 destroyed. 01167_ Critical hit (Destroy). 01167_ Particle Gun destroyed. 01169_ as-67414 destroyed. 01172_ Acquired 11 matter. 01176_ System corrupted: Component data lost. 01180_ as-39055 destroyed. 01180_ Lgt. Ion Engine destroyed. Map ----- +----------------------------------------------------+ | ???????????????? ????????????????????????????? | | ???????????????? #???????????????????????????? | | ???????????????? #???????????????????????????? | | ???##??????????? #???????????????????????????? | | ??? ??????????? #???????????????????????????? | | ??? ????????## #???????????????????????????? | | ???# ????????# #????????? ?????????????????? | | ???# ????????# ????????# ?????????????????? | | ???# ????????# #??????## ?????????????????? | | ???# ????????# #???### ??????????????????? | | ???# ???????## ##?# #???????????????????? | | ???# ?????### #? #????????????????????? | | ???# ###### ## #????????????????????? | | #??# ##???????????????????? | | ##?# ### #???????????????? | | ##### ### # #???????????????? | | ##?# #?# ## #???????????????????? | | ### #?# ### ##???????????????????? | | #?# #?## ##????????????????????? | | ######?# #??## ##?????????????????????? | | #??????# #???### #########?????????????????? | | ##?????# #?????# #??## #?????????????????? | | ##????? ??????# #### #?????????????????? | | #????? ??????# %%[%=* % #?????????????????? | | #????? ??????######*%[%=### ! a ?????? | | #????? ???????????## @a % ?????? | | ## #?????#????????????# a / ?????? | | ?# #??????????????????# ?????? | | ?# #??????????????????# #######??????? | | ?# #?????????????????? ##????????????? | | ## #?????????????????? """ #?????????????? | | #?????????????????# """ #?????????????? | | #?????????????????# """ #?????????????? | | #####?????????????????# #?????????????? | | ??????????????????????#####??? ##?????????????? | | ???????????????????????????????#??????????????? | | ??????????????????????????????????????????????? | | ??????????????????????????????????????????????? | | | | | | | | | | | | | | | | | | | | | | | | | +----------------------------------------------------+ Best States ------------- Heat Dissipation 39 Energy Generation 10 Energy Capacity 250 Matter Stores 300 Matter Capacity 300 Sight Range 16 Terrain Scan Range 16 Terrain Scan Density 10 Evasion (%) 55 Item Schematics ----------------- None Robot Schematics ------------------ None Fabricated ------------ Nothing Alien Tech Used ----------------- None Achievements -------------- None Challenges ------------ None Game ------ Seed KineticComponentShotgun Manual? 0 Play Time 00:12:20 Cumulative 256.5 hours Start 2022.04.08 @ 13:15:37 End 2022.04.08 @ 13:25:54 Sessions 1 Manual Loads 0 Difficulty Rogue Special Mode None Game No. 222 Rogue 222 Adventurer 0 Explorer 0 Win Type - Total 0 Types 0/0/0/0/0/0/0/0/0 Lore% 48 Gallery% 54 Achievement% 39 Wizard Run 0 Options --------- ASCII 0 Keyboard 0 Movement Mouse Keybinds 0 Fullscreen 1 Font 16/SmallcapsGlow Map View 75x55 Tactical HUD 1 Map Filters NONE Filters NONE Steam 1 RUN: f7c7b66e-487f-4590-8883-2d3366c230e9